bitfinex/quotes_SOLUSD_20250919
["timestamp","ask_amount","ask_price","bid_price","bid_amount"]
[1758307442360,0.68,237.4,237.37,32.44]
[1758307442544,1.48592418,237.39,237.37,33.16]
[1758307443156,1.48592418,237.39,237.37,32.44]
[1758307443457,0.68,237.41,237.37,32.44]
[1758307443458,4.21139852,237.46,237.37,32.44]
[1758307443642,1.48592418,237.43,237.38,0.72]
[1758307443849,1.48592418,237.41,237.39,32.44]
[1758307444050,1.48592418,237.41,237.39,36.65246963]
[1758307444254,2.16592418,237.41,237.39,36.65246963]
[1758307447449,1.48592418,237.41,237.39,36.65246963]
[1758307447861,1.48592418,237.41,237.39,37.37246963]
[1758307448251,31.2,237.44,237.39,36.65246963]
[1758307448452,1.48592418,237.42,237.4,4.21220146]
[1758307448655,0.68,237.44,237.41,32.44]
[1758307448855,1.48592418,237.42,237.41,32.44]
[1758307452175,2.16592418,237.42,237.41,32.44]
[1758307453146,6.37792298,237.42,237.36,4.21284205]
[1758307453342,1.48592418,237.39,237.37,32.44]
[1758307453583,1.48592418,237.39,237.38,32.44]
[1758307455983,0.68,237.41,237.38,32.44]
[1758307456158,1.48592418,237.4,237.38,32.44]
[1758307456677,2.16592418,237.4,237.38,32.44]
[1758307457254,1.48592418,237.4,237.38,32.44]
[1758307458291,0.68,237.4,237.38,32.44]
[1758307458461,2.16592418,237.4,237.38,32.44]
[1758307459179,0.68,237.39,237.38,32.44]
[1758307459404,31.2,237.37,237.35,4.2119988]
[1758307459579,1.48592418,237.36,237.35,4.2119988]
[1758307459759,1.48592418,237.36,237.35,36.6519988]
[1758307459955,1.48592418,237.36,237.35,32.44]
[1758307461055,6.37893395,237.36,237.3,14.31559401]
[1758307461292,1.48592418,237.34,237.31,32.44]
[1758307461462,1.48592418,237.34,237.31,33.16]
[1758307462355,1.48592418,237.34,237.31,32.44]
[1758307462580,1.48592418,237.34,237.32,0.72]
[1758307462985,1.48592418,237.34,237.33,32.44]
[1758307463796,2.32401069,237.34,237.33,32.44]
[1758307464993,2.32401069,237.34,237.32,0.72]
[1758307465195,2.32401069,237.34,237.33,32.44]
[1758307466186,7.24737799,237.34,237.33,32.44]
[1758307466565,7.24737799,237.34,237.28,12.78255372]
[1758307466791,2.32401069,237.3,237.29,32.44]
[1758307467681,3.03401069,237.3,237.26,14.28559401]
[1758307468000,2.32401069,237.28,237.27,32.44]
[1758307468202,2.32401069,237.28,237.26,14.28559401]
[1758307468373,2.32401069,237.28,237.27,32.44]
[1758307468682,2.32401069,237.28,237.26,14.28559401]
[1758307468683,2.32401069,237.28,237.26,18.50037281]
[1758307468884,2.32401069,237.28,237.27,32.44]
[1758307469102,2.32401069,237.3,237.27,45.53864837]
[1758307469271,2.32401069,237.3,237.27,44.84864837]
[1758307469470,2.32401069,237.3,237.28,0.69]
[1758307469707,2.32401069,237.3,237.29,32.44]
[1758307476305,3.03401069,237.3,237.29,32.44]
[1758307477177,2.32401069,237.3,237.29,32.44]
[1758307480505,0.71,237.34,237.29,33.13]
[1758307480685,2.32401069,237.31,237.29,36.65412838]
[1758307480887,2.32401069,237.31,237.29,37.34412838]
[1758307481286,2.32401069,237.31,237.29,36.65412838]
[1758307485208,2.32401069,237.31,237.29,37.34412838]
[1758307485593,2.32401069,237.32,237.3,33.13]
[1758307486294,2.32401069,237.33,237.3,33.13]
[1758307486493,3.03401069,237.33,237.3,33.13]
[1758307487001,3.03401069,237.33,237.3,32.44]
[1758307487498,3.03401069,237.33,237.29,4.21412838]
[1758307487701,3.03401069,237.33,237.3,32.44]
[1758307489312,2.32401069,237.33,237.3,37.34406857]
[1758307490308,2.32401069,237.33,237.3,36.65406857]
[1758307490616,3.03401069,237.33,237.3,32.44]
[1758307491295,2.32401069,237.33,237.3,33.13]
[1758307493097,3.03401069,237.33,237.3,33.13]
[1758307494015,2.32401069,237.33,237.3,33.13]
[1758307495724,2.32401069,237.33,237.31,0.66]
[1758307495923,2.32401069,237.33,237.32,32.44]
[1758307497492,2.99401069,237.33,237.29,0.66]
[1758307497821,2.99401069,237.33,237.3,33.1]
[1758307499122,4.21320673,237.35,237.3,33.1]
[1758307499452,2.32401069,237.33,237.31,0.67]
[1758307499610,2.32401069,237.33,237.32,32.44]
[1758307500336,2.98401069,237.33,237.32,32.44]
[1758307500722,0.66,237.36,237.32,33.11]
[1758307500934,4.212855,237.37,237.32,33.11]
[1758307500935,0.66,237.4,237.33,0.67]
[1758307501144,2.32401069,237.38,237.34,32.44]
[1758307501445,2.32401069,237.39,237.35,0.67]
[1758307501644,5.82382519,237.39,237.36,32.44]
[1758307501811,0.66,237.38,237.36,32.44]
[1758307502319,2.32401069,237.37,237.36,32.44]
[1758307505632,2.84315012,237.4,237.36,32.44]
[1758307505843,2.32401069,237.37,237.36,36.65300243]
[1758307506020,36.7,237.42,237.31,4.21247802]
[1758307506223,2.32401069,237.33,237.32,13.59559401]
[1758307506437,2.32401069,237.34,237.32,46.70559401]
[1758307506750,2.32401069,237.34,237.33,18.47913633]
[1758307507132,4.21250288,237.39,237.33,18.47913633]
[1758307507347,2.32401069,237.36,237.34,0.67]
[1758307507559,2.32401069,237.36,237.35,32.44]
[1758307507720,2.32401069,237.36,237.35,33.11]
[1758307508120,5.5,237.42,237.36,13.59559401]
[1758307508321,2.32401069,237.41,237.38,13.59559401]
[1758307508553,2.32401069,237.41,237.39,33.11]
[1758307508754,5.5,237.42,237.41,13.59559401]
[1758307509124,5.5,237.42,237.41,46.70559401]
[1758307509357,4.14,237.42,237.41,46.70559401]
[1758307509530,4.14,237.42,237.41,52.20559401]
[1758307509931,0.1,237.47,237.41,133.00559401]
[1758307510244,0.1,237.47,237.46,15.9196047]
[1758307510447,0.1,237.47,237.46,129.1596047]
[1758307510628,0.2,237.49,237.47,13.59559401]
[1758307510949,0.2,237.49,237.48,38.9748916]
[1758307511744,0.2,237.49,237.48,36.65088091]
[1758307513145,0.2,237.49,237.48,38.9748916]
[1758307513341,0.2,237.49,237.48,52.57048561]
[1758307514428,0.2,237.49,237.48,133.37048561]
[1758307514842,0.2,237.49,237.48,146.0316517]
[1758307515055,0.2,237.49,237.48,65.2316517]
[1758307515367,0.2,237.49,237.48,62.90764101]
[1758307517072,0.86,237.49,237.48,30.46764101]
[1758307517240,0.2,237.49,237.48,62.88764101]
[1758307517954,0.2,237.49,237.48,50.22647492]
[1758307518257,0.2,237.49,237.48,52.55048561]
[1758307518558,0.2,237.49,237.48,54.8744963]
[1758307520358,0.2,237.49,237.48,135.6744963]
[1758307523361,0.2,237.49,237.48,103.2544963]
[1758307523652,0.2,237.49,237.48,135.6744963]
[1758307524152,0.86,237.49,237.48,2.32401069]
[1758307524349,3.18401069,237.49,237.48,34.74401069]
[1758307524533,0.86,237.49,237.48,34.74401069]
[1758307524733,0.86,237.49,237.48,36.63088091]
[1758307525058,0.2,237.49,237.48,36.63088091]
[1758307527158,0.89,237.49,237.48,36.63088091]
[1758307529169,0.89,237.49,237.48,117.43088091]
[1758307529353,0.2,237.49,237.48,117.43088091]
[1758307531661,0.2,237.49,237.48,131.02647492]
[1758307531857,0.2,237.49,237.48,132.71470165]
[1758307534666,0.2,237.49,237.48,132.69470165]
[1758307538369,0.2,237.49,237.48,134.17984879]
[1758307540060,0.2,237.49,237.48,101.77984879]
[1758307540259,0.2,237.49,237.48,134.17984879]
[1758307541565,0.2,237.49,237.48,132.69470165]
[1758307541872,0.2,237.49,237.48,134.17984879]
[1758307543474,0.89,237.49,237.48,100.29470165]
[1758307543678,0.89,237.49,237.48,131.00647492]
[1758307543853,0.2,237.49,237.48,132.49162206]
[1758307544582,0.2,237.49,237.48,145.15385695]
[1758307545875,0.89,237.49,237.48,134.17992005]
[1758307546083,0.89,237.49,237.48,101.77992005]
[1758307546268,0.89,237.49,237.48,134.17992005]
[1758307549779,0.2,237.49,237.48,134.17992005]
[1758307550163,0.89,237.49,237.48,134.17992005]
[1758307551057,0.89,237.49,237.48,101.77992005]
[1758307551374,0.89,237.49,237.48,134.17992005]
[1758307551556,0.89,237.49,237.48,101.77992005]
[1758307551755,0.89,237.49,237.48,132.69477291]
[1758307551964,0.89,237.49,237.48,134.17992005]
[1758307552366,0.89,237.49,237.48,132.69477291]
[1758307552977,0.89,237.49,237.48,131.00647492]
[1758307553458,0.89,237.49,237.48,98.60647492]
[1758307553662,0.89,237.49,237.48,131.00647492]
[1758307560891,0.2,237.49,237.48,131.00647492]
[1758307561391,0.86,237.49,237.48,132.49162206]
[1758307563474,0.2,237.49,237.48,132.49162206]
[1758307565480,0.86,237.49,237.48,132.49162206]
[1758307567180,0.2,237.49,237.48,132.49162206]
[1758307569288,0.86,237.49,237.48,132.49162206]
[1758307570696,0.2,237.49,237.48,132.49162206]
[1758307570901,0.2,237.49,237.48,51.69162206]
[1758307572186,0.2,237.49,237.48,50.20647492]
[1758307572496,0.2,237.49,237.48,51.69162206]
[1758307576006,0.2,237.49,237.48,13.59559401]
[1758307576007,0.86,237.49,237.48,13.59559401]
[1758307576176,0.86,237.49,237.48,45.99559401]
[1758307576704,0.86,237.49,237.48,126.79559401]
[1758307577082,0.86,237.49,237.48,131.00647492]
[1758307577397,0.86,237.49,237.48,80.8]
[1758307577599,0.86,237.49,237.48,32.4]
[1758307577809,0.2,237.49,237.48,32.4]
[1758307577982,0.86,237.49,237.48,32.4]
[1758307579106,0.86,237.49,237.48,36.61088091]
[1758307580083,0.86,237.49,237.46,80.8]
[1758307580283,0.66,237.48,237.47,32.4]
[1758307581411,0.66,237.48,237.44,13.59559401]
[1758307581709,0.66,237.47,237.45,32.4]
[1758307581879,0.66,237.46,237.45,32.4]
[1758307582079,6.35639481,237.46,237.34,4.21336479]
[1758307582323,1.48514714,237.44,237.36,1.48514714]
[1758307582618,34.70268809,237.45,237.35,32.4]
[1758307582619,2.14514714,237.43,237.37,32.4]
[1758307582790,0.66,237.42,237.37,32.4]
[1758307582997,0.66,237.41,237.37,32.4]
[1758307583217,0.66,237.4,237.37,32.4]
[1758307583421,0.66,237.39,237.37,32.4]
[1758307583595,0.66,237.38,237.37,32.4]
[1758307583919,0.66,237.38,237.33,114.94]
[1758307584102,0.66,237.37,237.34,45.99559401]
[1758307584308,0.66,237.36,237.34,45.99559401]
[1758307584509,0.66,237.35,237.34,13.59559401]
[1758307584699,0.66,237.35,237.34,45.99559401]
[1758307585512,0.72,237.37,237.34,45.99559401]
[1758307585818,0.72,237.36,237.34,45.99559401]
[1758307586206,0.72,237.36,237.34,17.8089588]
[1758307586412,1.48514714,237.39,237.35,32.4]
[1758307586603,0.72,237.38,237.35,32.4]
[1758307586805,0.72,237.37,237.35,32.4]
[1758307587005,0.72,237.36,237.35,32.4]
[1758307591424,0.72,237.36,237.34,98.60892596]
[1758307591730,2.32320927,237.38,237.35,32.4]
[1758307592132,0.72,237.37,237.34,94.39559401]
[1758307592322,2.32320927,237.37,237.34,80.8]
[1758307592501,2.32320927,237.35,237.33,34.14]
[1758307592705,2.32320927,237.35,237.34,32.4]
[1758307593315,3.04320927,237.35,237.34,32.4]
[1758307593711,7.25639654,237.35,237.34,32.4]
[1758307594025,7.25639654,237.35,237.27,97.43358758]
[1758307594238,2.32320927,237.32,237.28,45.99559401]
[1758307594401,0.72,237.31,237.28,45.99559401]
[1758307594602,0.72,237.31,237.28,13.59559401]
[1758307594824,0.72,237.31,237.29,32.4]
[1758307595011,0.72,237.33,237.29,32.4]
[1758307595609,0.72,237.33,237.3,4.21407501]
[1758307595808,0.72,237.33,237.31,32.4]
[1758307596215,0.72,237.32,237.31,32.4]
[1758307597010,2.32320927,237.33,237.31,32.4]
[1758307597225,3.04320927,237.32,237.31,32.4]
[1758307597431,0.72,237.32,237.31,32.4]
[1758307599945,3.04320927,237.32,237.31,32.4]
[1758307600642,7.25692914,237.32,237.31,32.4]
[1758307601941,7.25692914,237.32,237.28,80.8]
[1758307602229,2.32320927,237.29,237.27,12.41915107]
[1758307602427,3.04320927,237.28,237.25,94.39559401]
[1758307602619,0.72,237.27,237.26,32.4]
[1758307602814,0.72,237.27,237.26,45.34023433]
[1758307603628,7.2578171,237.27,237.23,0.2]
[1758307603830,2.32320927,237.24,237.23,0.2]
[1758307604021,33.52320927,237.24,237.23,0.2]
[1758307604220,34.24320927,237.24,237.23,0.2]
[1758307605120,38.45835005,237.24,237.23,0.2]
[1758307605512,38.45835005,237.24,237.22,0.2]
[1758307605714,38.45835005,237.24,237.21,0.1]
[1758307605715,2.32320927,237.23,237.21,0.1]
[1758307605909,2.32320927,237.22,237.21,0.1]
[1758307606109,34.24320927,237.22,237.21,0.1]
[1758307607344,38.45870543,237.22,237.21,0.1]
[1758307607527,71.35870543,237.22,237.21,0.1]
[1758307609540,81.89744583,237.22,237.18,0.2]
[1758307609741,33.52320927,237.2,237.18,0.2]
[1758307610246,34.24320927,237.2,237.18,0.2]
[1758307610544,31.2,237.19,237.18,0.2]
[1758307610725,33.52320927,237.19,237.18,0.2]
[1758307611046,34.24320927,237.19,237.18,0.2]
[1758307611224,3.04320927,237.19,237.18,0.2]
[1758307611428,38.45923861,237.19,237.18,0.2]
[1758307612129,71.33923861,237.19,237.18,0.2]
[1758307612330,38.45923861,237.19,237.18,0.2]
[1758307612718,71.33923861,237.19,237.18,0.2]
[1758307613041,38.45923861,237.19,237.18,0.2]
[1758307613241,71.33923861,237.19,237.18,0.2]
[1758307613444,38.45923861,237.19,237.18,0.2]
[1758307613633,71.33923861,237.19,237.18,0.2]
[1758307614039,71.31923861,237.19,237.18,0.2]
[1758307614744,71.33923861,237.19,237.18,0.2]
[1758307616548,84.20252123,237.19,237.15,0.2]
[1758307616752,35.84641854,237.16,237.15,0.2]
[1758307617253,89.40641854,237.16,237.12,1e-08]
[1758307617453,2.32320927,237.12,237.11,1e-08]
[1758307617624,66.82320927,237.12,237.11,1e-08]
[1758307617826,2.32320927,237.09,237.08,0.2]
[1758307618128,31.2,237.11,237.08,0.2]
[1758307618328,4.91780758,237.09,237.08,0.2]
[1758307618533,6.54101685,237.09,237.08,0.2]
[1758307619533,7.25101685,237.09,237.08,0.2]
[1758307620046,38.45101685,237.09,237.08,0.2]
[1758307620235,71.79101685,237.09,237.08,0.2]
[1758307620438,40.59101685,237.09,237.08,0.2]
[1758307620829,31.2,237.06,237.05,0.2]
[1758307621030,2.32320927,237.06,237.05,0.2]
[1758307621758,3.03320927,237.06,237.05,0.2]
[1758307622052,2.32320927,237.06,237.05,0.2]
[1758307622355,6.54155061,237.06,237.05,0.2]
[1758307623251,39.84155061,237.06,237.05,0.2]
[1758307624144,4.21834134,237.06,237.05,0.2]
[1758307624450,6.54155061,237.06,237.05,0.86]
[1758307624859,6.54155061,237.06,237.05,0.2]
[1758307625528,4.2181115,237.08,237.05,0.2]
[1758307625728,2.32320927,237.06,237.05,0.86]
[1758307626039,33.52320927,237.06,237.05,0.86]
[1758307627265,37.74155061,237.06,237.05,0.86]
[1758307627462,37.74155061,237.06,237.05,0.2]
[1758307628064,38.45155061,237.06,237.05,0.2]
[1758307628260,37.74155061,237.06,237.05,0.2]
[1758307628937,37.74155061,237.06,237.05,0.86]
[1758307633463,4.21817075,237.07,237.05,0.86]
[1758307633671,2.32320927,237.06,237.05,0.2]
[1758307634236,2.32320927,237.06,237.05,0.86]
[1758307634835,4.21745181,237.11,237.05,0.86]
[1758307635034,2.32320927,237.07,237.06,0.66]
[1758307635761,7.25137268,237.07,237.05,0.2]
[1758307636063,6.54137268,237.07,237.05,0.2]
[1758307636557,6.54137268,237.07,237.05,0.86]
[1758307637755,6.54137268,237.07,237.05,0.2]
[1758307638758,6.54137268,237.07,237.05,0.86]
[1758307639580,6.54137268,237.07,237.06,0.66]
[1758307639774,31.2,237.11,237.06,0.66]
[1758307640066,0.71,237.13,237.06,0.66]
[1758307640067,2.32320927,237.08,237.06,0.66]
[1758307640434,2.32320927,237.08,237.05,0.2]
[1758307640639,2.32320927,237.06,237.05,0.86]
[1758307641459,6.54155061,237.06,237.05,0.2]
[1758307641760,4.21834134,237.06,237.05,0.2]
[1758307641957,6.54155061,237.06,237.05,0.2]
[1758307643375,35.41834134,237.06,237.05,0.2]
[1758307643540,35.41834134,237.06,237.05,0.86]
[1758307643541,33.52320927,237.06,237.05,0.86]
[1758307643736,33.52320927,237.06,237.05,0.2]
[1758307643936,37.74155061,237.06,237.05,0.2]
[1758307644871,31.2,237.09,237.05,0.86]
[1758307645077,31.2,237.09,237.06,0.66]
[1758307645078,33.52320927,237.08,237.06,0.66]
[1758307645241,2.32320927,237.07,237.05,0.2]
[1758307645445,4.21834134,237.06,237.05,0.2]
[1758307648360,5.15248297,237.07,237.05,0.2]
[1758307648959,9.37071139,237.07,237.05,0.2]
[1758307649173,6.54143769,237.07,237.05,0.2]
[1758307649846,1.49117517,237.06,237.05,0.2]
[1758307651461,5.70951651,237.06,237.05,0.2]
[1758307652976,6.42951651,237.06,237.05,0.2]
[1758307653282,37.62951651,237.06,237.05,0.2]
[1758307653475,36.90951651,237.06,237.05,0.2]
[1758307654775,37.62951651,237.06,237.05,0.2]
[1758307655778,36.90951651,237.06,237.05,0.2]
[1758307655971,32.69117517,237.06,237.05,0.92]
[1758307656172,1.49117517,237.07,237.05,0.92]
[1758307656374,1.49117517,237.07,237.06,0.72]
[1758307656571,32.69117517,237.07,237.06,0.72]
[1758307657478,1.49117517,237.09,237.06,0.72]
[1758307657789,1.49117517,237.09,237.07,0.72]
[1758307659985,5.70898434,237.09,237.06,0.72]
[1758307660684,1.49117517,237.07,237.05,0.2]
[1758307660873,1.49117517,237.07,237.05,0.92]
[1758307661262,7.05961958,237.09,237.05,0.92]
[1758307661462,1.49117517,237.08,237.05,0.2]
[1758307661676,1.49117517,237.08,237.06,0.72]
[1758307662483,2.21117517,237.08,237.05,0.2]
[1758307662784,1.49117517,237.07,237.05,0.2]
[1758307663081,2.8484767,237.06,237.05,0.2]
[1758307663476,7.78681804,237.06,237.05,0.2]
[1758307664556,5.70936239,237.07,237.05,0.2]
[1758307664971,8.55737402,237.07,237.05,0.92]
[1758307665184,5.70936239,237.07,237.05,0.92]
[1758307665565,8.55742066,237.07,237.05,0.92]
[1758307665765,5.70936239,237.07,237.05,0.92]
[1758307666181,8.55738527,237.07,237.05,0.92]
[1758307666387,5.70936239,237.07,237.05,0.92]
[1758307666568,2.84812674,237.08,237.06,0.72]
[1758307666774,39.75650384,237.11,237.06,0.72]
[1758307666977,2.84787686,237.1,237.07,0.72]
[1758307667168,2.84787686,237.09,237.07,0.72]
[1758307667362,2.84787686,237.1,237.07,0.72]
[1758307667575,2.84782543,237.1,237.08,0.72]
[1758307667984,1.49117517,237.1,237.08,0.72]
[1758307669181,5.70884416,237.1,237.06,0.72]
[1758307669605,5.70884416,237.1,237.05,0.2]
[1758307669606,5.70884416,237.1,237.07,0.72]
[1758307669794,1.49117517,237.1,237.08,0.72]
[1758307672997,1.49117517,237.1,237.05,4.41843741]
[1758307673197,5.70882882,237.1,237.06,0.72]
[1758307673496,1.49117517,237.08,237.05,0.2]
[1758307673677,1.49117517,237.06,237.05,0.2]
[1758307673869,36.90951651,237.06,237.05,0.2]
[1758307674076,40.47636964,237.06,237.05,0.2]
[1758307682983,73.33636964,237.06,237.05,0.2]
[1758307684490,89.84692369,237.06,237.02,0.2]
[1758307684805,42.87475109,237.03,237.02,0.2]
[1758307684989,78.60160422,237.03,237.02,0.2]
[1758307685188,79.27160422,237.03,237.02,0.2]
[1758307685393,79.27160422,237.03,236.94,0.88]
[1758307685394,89.81879233,237.03,236.94,0.2]
[1758307685575,32.69117517,237.0,236.94,0.2]
[1758307685780,68.3980283,237.0,236.94,0.2]
[1758307686202,69.0680283,237.0,236.94,0.2]
[1758307687083,73.28743758,237.0,236.94,0.2]
[1758307689003,73.28743758,237.0,236.99,1e-08]
[1758307691799,70.44058445,237.0,236.99,1e-08]
[1758307694119,80.98910765,237.0,236.94,0.88]
[1758307694290,1.49117517,236.97,236.94,0.88]
[1758307695398,5.71111862,236.97,236.94,0.88]
[1758307698309,6.38111862,236.97,236.94,0.2]
[1758307698811,5.71111862,236.97,236.94,0.2]
[1758307699816,36.91111862,236.97,236.96,0.88]
[1758307700594,5.71111862,236.97,236.96,0.2]
[1758307700813,36.91111862,236.97,236.96,0.88]
[1758307701905,36.91111862,236.97,236.96,0.2]
[1758307704124,37.58111862,236.97,236.96,0.2]
[1758307704421,39.18111862,236.97,236.96,1e-08]
[1758307704635,31.2,236.95,236.94,0.2]
[1758307704793,65.49117517,236.95,236.94,0.2]
[1758307704998,66.16117517,236.95,236.94,0.2]
[1758307705597,70.38147481,236.95,236.94,0.2]
[1758307708308,37.58147481,236.95,236.94,0.2]
[1758307708496,4.22029964,236.95,236.94,0.87]
[1758307708697,1.69315753,236.96,236.94,0.87]
[1758307708897,4.22012153,236.96,236.95,0.67]
[1758307709513,31.2,236.95,236.94,0.2]
[1758307710317,37.75219682,236.95,236.94,0.2]
[1758307713918,35.42029964,236.95,236.94,0.2]
[1758307714101,35.42029964,236.95,236.94,0.87]
[1758307714298,35.42029964,236.95,236.94,0.2]
[1758307716111,36.08029964,236.95,236.94,0.2]
[1758307718116,35.42029964,236.95,236.94,0.2]
[1758307718721,35.42029964,236.95,236.94,0.87]
[1758307719112,35.42029964,236.95,236.94,0.2]
[1758307719612,4.22029964,236.95,236.94,0.2]
[1758307720416,4.88029964,236.95,236.94,0.2]
[1758307721637,4.22029964,236.95,236.94,0.2]
[1758307722741,5.17199363,236.96,236.94,0.87]
[1758307722943,5.17199363,236.96,236.95,0.67]
[1758307723238,5.17199363,236.96,236.94,0.87]
[1758307723417,31.2,236.95,236.94,0.2]
[1758307724023,31.2,236.95,236.94,0.87]
[1758307724733,31.2,236.96,236.94,0.87]
[1758307724925,31.2,236.96,236.95,0.67]
[1758307726028,2.33189718,237.0,236.95,0.67]
[1758307726225,9.39583667,237.0,236.95,0.67]
[1758307726414,40.59583667,237.0,236.95,0.67]
[1758307726613,2.84452754,236.99,236.95,4.8902986]
[1758307726815,2.84452754,236.99,236.96,0.67]
[1758307727117,31.2,236.98,236.97,0.67]
[1758307727714,6.55131807,237.0,236.97,0.67]
[1758307727915,31.2,236.99,236.97,0.67]
[1758307729021,31.2,236.99,236.98,0.67]
[1758307729230,2.8468861,236.99,236.98,0.67]
[1758307729431,2.8468861,237.01,236.98,0.67]
[1758307729666,2.8468861,237.0,236.99,0.67]
[1758307730922,2.8468861,237.0,236.97,0.67]
[1758307731236,37.75096141,237.02,236.95,4.22014187]
[1758307731237,2.8468861,236.99,236.98,0.67]
[1758307731443,2.8468861,237.0,236.97,0.67]
[1758307731628,2.8468861,236.99,236.97,0.67]
[1758307731832,2.8468861,237.0,236.97,0.67]
[1758307732026,2.8468861,236.99,236.94,0.2]
[1758307732344,31.2,236.96,236.94,0.2]
[1758307733217,2.33189718,236.98,236.94,0.2]
[1758307733427,31.2,236.96,236.95,0.67]
[1758307734529,31.2,236.96,236.94,0.2]
[1758307734939,31.2,236.96,236.95,0.67]
[1758307735125,31.2,236.96,236.94,0.2]
[1758307735447,31.2,236.96,236.94,0.87]
[1758307740246,31.2,236.96,236.95,0.68]
[1758307740822,31.2,236.97,236.95,0.68]
[1758307741324,4.42047703,237.02,236.95,4.90021282]
[1758307741536,2.84771065,237.01,236.97,2.33189718]
[1758307741822,0.72,237.04,236.97,2.33189718]
[1758307741823,31.2,237.02,236.97,2.33189718]
[1758307742041,2.84771065,237.01,236.98,0.68]
[1758307742434,31.2,237.02,236.98,0.68]
[1758307742838,31.2,237.02,236.99,4.89958732]
[1758307743243,31.2,237.02,236.99,4.21958732]
[1758307743460,31.2,237.02,236.99,4.89958732]
[1758307744157,31.2,237.02,237.0,0.68]
[1758307744336,31.2,237.03,237.0,0.68]
[1758307744733,3.05189718,237.05,237.0,0.68]
[1758307744960,31.2,237.03,237.0,0.68]
[1758307745559,0.72,237.04,237.0,4.89939333]
[1758307745761,0.72,237.04,237.0,0.68]
[1758307745969,0.72,237.03,236.98,4.8996101]
[1758307746148,0.72,237.03,236.99,0.68]
[1758307746654,2.84458957,237.04,236.98,4.2196101]
[1758307746856,7.06314932,237.05,237.0,0.68]
[1758307747056,3.56458957,237.05,237.01,0.68]
[1758307748765,0.72,237.04,237.0,4.21933267]
[1758307748952,0.72,237.04,237.0,4.89933267]
[1758307749154,0.72,237.04,237.0,0.68]
[1758307749475,0.72,237.03,236.98,0.68]
[1758307749766,5.17648675,237.04,236.98,4.21976159]
[1758307749974,3.05189718,237.02,236.95,81.48]
[1758307750149,2.33189718,237.01,236.95,33.32]
[1758307750339,3.05189718,237.01,236.95,33.32]
[1758307750546,3.05189718,237.01,236.96,0.68]
[1758307750744,2.33189718,237.01,236.97,4.21994345]
[1758307750944,0.72,237.01,236.97,4.89994345]
[1758307751655,33.53189718,237.02,236.98,0.68]
[1758307751856,0.72,237.01,236.96,4.90012153]
[1758307752255,2.33189718,236.97,236.94,0.2]
[1758307752454,3.05189718,236.97,236.94,0.2]
[1758307753364,2.33189718,236.96,236.94,0.2]
[1758307753668,33.53189718,236.95,236.94,0.2]
[1758307753855,37.75219682,236.95,236.94,0.2]
[1758307754056,38.47219682,236.95,236.94,0.2]
[1758307756669,41.31334246,236.95,236.94,0.2]
[1758307756845,43.00635666,236.95,236.94,0.2]
[1758307758550,75.64635666,236.95,236.94,0.2]
[1758307761372,43.00635666,236.95,236.94,0.2]
[1758307761546,4.02491138,236.95,236.94,0.88]
[1758307761963,2.33189718,236.95,236.94,0.88]
[1758307762550,33.53189718,236.95,236.94,0.88]
[1758307763052,33.53189718,236.95,236.94,0.2]
[1758307763258,33.53189718,236.95,236.94,0.88]
[1758307763456,2.33189718,236.95,236.94,0.88]
[1758307764164,2.33189718,236.95,236.94,0.2]
[1758307764368,2.33189718,236.95,236.94,0.88]